bitfinex/quotes_SOLUSD_20220226
["timestamp","ask_amount","ask_price","bid_price","bid_amount"]
[1645891867383,22.736,91.728,91.661,2.36666946]
[1645891867786,46.84023073,91.73,91.662,22.8168]
[1645891869682,46.84023073,91.73,91.663,109.4]
[1645891869887,46.84023073,91.73,91.664,4.362]
[1645891870086,46.84023073,91.73,91.67,16.3648]
[1645891870288,46.84023073,91.73,91.671,2.2648868]
[1645891870686,46.84023073,91.73,91.67,32.1348]
[1645891871987,46.84023073,91.73,91.67,15.77]
[1645891874791,46.34023073,91.73,91.67,15.77]
[1645891876696,46.34023073,91.73,91.67,32.135]
[1645891877597,24.3387,91.747,91.67,32.135]
[1645891877598,24.3387,91.747,91.671,112.50526919]
[1645891877800,24.3387,91.747,91.671,3.10526919]
[1645891878101,38.8299,91.769,91.672,4.361]
[1645891878298,24.018,91.768,91.674,2.82249054]
[1645891878499,24.018,91.768,91.675,4.361]
[1645891878701,45.96497709,91.767,91.675,7.33018009]
[1645891879504,45.96497709,91.767,91.69,16.3614]
[1645891879702,45.96497709,91.767,91.691,24.7755]
[1645891883714,45.96497709,91.767,91.7,16.3594]
[1645891886616,45.96497709,91.767,91.71,16.3578]
[1645891886815,45.96497709,91.767,91.711,23.6056]
[1645891887917,44.46497709,91.767,91.711,23.6056]
[1645891890823,65.55,91.766,91.682,2.74678921]
[1645891891131,1.54457084,91.765,91.682,2.74678921]
[1645891891329,65.55,91.764,91.678,23.1897]
[1645891891530,65.55,91.758,91.64,15.77]
[1645891891723,174.95,91.756,91.643,48.70464981]
[1645891891927,1.43540234,91.755,91.65,16.3671]
[1645891892322,65.55,91.753,91.65,16.3671]
[1645891892524,65.55,91.751,91.65,16.3671]
[1645891892722,1.55527448,91.75,91.65,16.3671]
[1645891893122,110.95527448,91.75,91.65,16.3671]
[1645891893324,65.55,91.745,91.65,16.3671]
[1645891893522,1.70408075,91.744,91.65,16.3671]
[1645891893726,111.10408075,91.744,91.65,16.3671]
[1645891893924,65.55,91.735,91.643,46.245]
[1645891894226,65.55,91.727,91.643,46.245]
[1645891894429,65.55,91.715,91.643,46.245]
[1645891894627,65.55,91.713,91.617,24.22104269]
[1645891894829,1.58825884,91.712,91.618,23.5453]
[1645891896432,109.4,91.71,91.615,114.94678921]
[1645891896730,109.4,91.71,91.615,2.74678921]
[1645891896731,65.55,91.695,91.615,2.74678921]
[1645891896931,109.4,91.686,91.602,23.2585]
[1645891897130,67.0171871,91.685,91.602,23.2585]
[1645891897331,1.86936865,91.684,91.602,23.2585]
[1645891898332,65.55,91.679,91.602,23.2585]
[1645891898531,65.55,91.677,91.602,23.2585]
[1645891898735,1.37445847,91.676,91.602,23.2585]
[1645891899433,16.3795,91.67,91.602,23.2585]
[1645891899732,66.99416622,91.669,91.602,23.2585]
[1645891899932,1.66464907,91.668,91.602,23.2585]
[1645891901134,1.66464907,91.668,91.59,16.3776]
[1645891901337,65.55,91.655,91.58,112.2]
[1645891901534,65.55,91.653,91.58,112.2]
[1645891901739,1.87114526,91.652,91.58,112.2]
[1645891902635,1.87114526,91.652,91.561,47.8128]
[1645891902834,65.55,91.65,91.561,47.8128]
[1645891903033,1.45507,91.649,91.561,47.8128]
[1645891903233,65.55,91.648,91.561,47.8128]
[1645891903434,65.55,91.644,91.561,47.8128]
[1645891903635,1.802224,91.643,91.561,47.8128]
[1645891904534,67.352224,91.643,91.561,47.8128]
[1645891904735,65.55,91.643,91.561,47.8128]
[1645891904935,24.1933,91.651,91.561,47.8128]
[1645891904936,24.1933,91.651,91.562,2.74678921]
[1645891905136,24.1933,91.651,91.562,26.9678319]
[1645891905334,24.1933,91.651,91.562,2.74678921]
[1645891905934,67.36510648,91.65,91.562,2.74678921]
[1645891906138,1.66050076,91.649,91.562,2.74678921]
[1645891906361,1.66050076,91.649,91.561,47.8128]
[1645891907636,24.1933,91.651,91.57,16.3821]
[1645891908542,24.1933,91.651,91.561,50.55958921]
[1645891911343,24.1933,91.651,91.562,2.84874441]
[1645891913865,65.55,91.65,91.562,2.84874441]
[1645891914051,65.55,91.65,91.561,47.8128]
[1645891914052,65.55,91.644,91.561,47.8128]
[1645891914248,1.4211375,91.643,91.561,47.8128]
[1645891916654,65.55,91.646,91.562,3.04271608]
[1645891917051,2.28284344,91.664,91.562,3.04271608]
[1645891917252,75.44583884,91.67,91.563,115.22073122]
[1645891917451,75.44583884,91.67,91.564,2.26515028]
[1645891917651,75.44583884,91.67,91.565,2.974232]
[1645891917851,54.6166,91.67,91.565,16.3277978]
[1645891918051,54.6166,91.67,91.565,16.10035501]
[1645891918351,54.6166,91.67,91.567,2.8187604]
[1645891918551,54.6166,91.67,91.57,32.1524]
[1645891918752,54.6166,91.67,91.571,2.29294104]
[1645891919157,54.6166,91.67,91.572,23.9324]
[1645891919353,54.6166,91.67,91.573,2.81211498]
[1645891919554,65.55,91.65,91.573,2.81211498]
[1645891919753,65.55,91.65,91.572,26.67918921]
[1645891919754,1.78726094,91.649,91.572,23.9324]
[1645891920854,65.55,91.65,91.572,23.9324]
[1645891922577,65.55,91.65,91.572,31.3524]
[1645891922776,65.55,91.65,91.573,2.74678921]
[1645891923580,65.55,91.65,91.572,23.9324]
[1645891924883,65.55,91.664,91.573,2.9943267]
[1645891929082,65.55,91.664,91.58,16.3805]
[1645891929285,65.55,91.674,91.59,15.77]
[1645891929484,24.1586,91.675,91.591,3.10658612]
[1645891930185,24.1586,91.675,91.593,2.53755189]
[1645891932186,24.1586,91.675,91.592,24.515]
[1645891932588,16.1372,91.662,91.592,24.515]
[1645891932986,23.7473,91.659,91.592,24.515]
[1645891936892,109.4,91.649,91.569,2.74678921]
[1645891937091,65.55,91.644,91.569,2.74678921]
[1645891937290,65.55,91.629,91.562,23.7494]
[1645891937491,51.65803868,91.629,91.562,23.7494]
[1645891938292,24.7051,91.628,91.562,23.7494]
[1645891938890,65.55,91.627,91.562,23.7494]
[1645891939493,65.55,91.627,72.0,24.25]
[1645891939494,1.5231299,91.624,91.53,18.51678921]
[1645891939691,1.5231299,91.624,91.533,24.0249]
[1645891939891,2.06931326,91.623,91.533,24.0249]
[1645891940491,65.55,91.619,91.533,24.0249]
[1645891942195,65.55,91.607,91.526,24.4751]
[1645891942396,65.55,91.599,91.526,24.4751]
[1645891942596,65.55,91.589,91.526,24.4751]
[1645891943717,65.55,91.597,91.526,24.4751]
[1645891943897,16.395,91.58,91.526,24.4751]
[1645891944095,60.50224134,91.579,91.526,24.4751]
[1645891945302,16.3965,91.57,91.526,24.4751]
[1645891946197,67.00214025,91.569,91.471,2.88442902]
[1645891946398,1.47141776,91.568,91.471,46.8703]
[1645891947498,65.55,91.563,91.471,46.8703]
[1645891947904,1.43762072,91.562,91.471,70.61773376]
[1645891949002,65.55,91.557,91.471,70.61773376]
[1645891949204,65.55,91.549,91.471,46.8703]
[1645891949404,65.55,91.547,91.471,46.8703]
[1645891950506,66.91668225,91.547,91.471,46.8703]
[1645891951103,1.85059222,91.544,91.471,46.8703]
[1645891951304,65.55,91.543,91.471,46.8703]
[1645891951502,1.63825806,91.542,91.471,46.8703]
[1645891953505,1.36767955,91.541,91.471,46.8703]
[1645891957524,24.3457,91.545,91.472,2.62729668]
[1645891957727,32.5242,91.57,91.472,2.62729668]
[1645891957924,16.3983,91.57,91.474,109.4]
[1645891958127,1.69640682,91.569,91.474,104.4521718]
[1645891958325,1.69640682,91.569,91.475,144.28476522]
[1645891958525,1.69640682,91.569,91.475,167.29247458]
[1645891958727,1.69640682,91.569,91.476,39.83259342]
[1645891958927,1.69640682,91.569,91.49,15.77]
[1645891959530,1.69640682,91.569,91.49,32.1669]
[1645891960734,1.69640682,91.569,91.5,16.3952]
[1645891965636,1.69640682,91.569,91.5,32.1652]
[1645891966938,22.517,91.577,91.5,32.1652]
[1645891967136,2.01196989,91.576,91.5,32.1652]
[1645891967539,22.517,91.577,91.501,109.4]
[1645891967738,1.82778734,91.603,91.511,109.4]
[1645891967938,44.54164654,91.612,91.521,109.4]
[1645891968139,44.54164654,91.612,91.53,15.77]
[1645891968737,44.54164654,91.612,91.531,2.74678921]
[1645891968938,44.54164654,91.612,91.54,16.388]
[1645891969241,44.54164654,91.612,91.54,32.158]
[1645891970039,1.63706335,91.611,91.54,32.158]
[1645891974744,1.63706335,91.611,91.54,15.77]
[1645891975545,65.55,91.611,91.54,15.77]
[1645891975745,1.974079,91.61,91.522,24.8082]
[1645891975946,65.55,91.608,91.522,24.8082]
[1645891976148,65.55,91.606,91.522,24.8082]
[1645891976345,2.04507614,91.605,91.522,24.8082]
[1645891977748,3.61996546,91.605,91.522,24.8082]
[1645891977947,65.55,91.604,91.522,24.8082]
[1645891978148,2.05422445,91.603,91.522,24.8082]
[1645891978851,23.742,91.609,91.522,24.8082]
[1645891979051,1.58656619,91.608,91.522,24.8082]
[1645891979251,1.58656619,91.608,91.523,2.74678921]
[1645891980052,1.58656619,91.608,91.522,24.8082]
[1645891980557,1.58656619,91.608,91.53,16.3897]
[1645891980754,1.58656619,91.608,91.53,32.1597]
[1645891983461,67.13656619,91.608,91.53,15.77]
[1645891983662,2.0857551,91.607,91.53,15.77]
[1645891983869,111.4857551,91.607,91.522,24.8082]
[1645891984062,109.4,91.603,91.505,4.368]
[1645891984261,174.95,91.589,91.504,22.9473]
[1645891984461,65.55,91.587,91.48,20.139]
[1645891984661,1.60207287,91.586,91.48,20.139]
[1645891984865,1.60207287,91.586,91.49,15.77]
[1645891985063,1.60207287,91.586,91.491,22.9473]
[1645891985664,1.60207287,91.586,91.504,22.6671]
[1645891986065,65.55,91.585,91.504,22.6671]
[1645891986265,1.86883634,91.584,91.504,22.6671]
[1645891986569,73.92,91.585,91.504,22.6671]
[1645891986570,2.08827896,91.578,91.504,22.6671]
[1645891987766,1.78877007,91.577,91.504,22.6671]
[1645891988569,54.65887084,91.569,91.504,22.6671]
[1645891988768,1.69575799,91.568,91.504,22.6671]
[1645891990787,67.24575799,91.568,91.504,22.6671]
[1645891990988,1.56669926,91.567,91.504,22.6671]
[1645891994990,54.65887084,91.569,91.505,109.4]
[1645891995190,54.65887084,91.569,91.51,16.3938]
[1645891995489,54.65887084,91.569,91.51,32.1638]
[1645891995691,54.65887084,91.569,91.51,34.91058921]
[1645891997395,1.71908467,91.582,91.511,109.4]
[1645891997593,23.8863,91.609,91.512,4.369]
[1645891997793,1.98941621,91.608,91.513,109.4]
[1645891997995,1.98941621,91.608,91.514,4.368]
[1645891998197,1.98941621,91.608,91.515,109.4]
[1645891998393,49.52939775,91.607,91.53,15.77]
[1645891998596,49.52939775,91.607,91.53,32.1599]
[1645891998793,1.78928519,91.606,91.53,32.1599]
[1645891999194,1.78928519,91.606,91.531,23.0272]
[1645891999594,1.78928519,91.606,91.54,16.3881]
[1645891999795,49.52939775,91.607,91.551,109.4]
[1645891999994,49.52939775,91.607,91.56,15.77]
[1645892001398,1.62635592,91.606,91.56,15.77]
[1645892001797,1.62635592,91.606,91.542,23.2164]
[1645892006198,67.17635592,91.606,91.54,15.77]
[1645892006399,2.01182811,91.605,91.534,24.3447]
[1645892012905,2.01182811,91.605,91.521,23.8601]
[1645892021615,2.01182811,91.605,91.522,2.74678921]
[1645892022633,2.01182811,91.605,91.521,23.8601]
[1645892023637,65.55,91.604,91.521,23.8601]
[1645892023837,1.69817057,91.603,91.521,23.8601]
[1645892034844,24.752,91.602,91.522,2.74678921]
[1645892035046,65.55,91.599,91.522,2.74678921]
[1645892035248,1.799151,91.598,91.521,23.8601]
[1645892036447,16.3935,91.59,91.521,23.8601]
[1645892036648,46.95269862,91.589,91.521,23.8601]
[1645892036850,65.55,91.588,91.521,23.8601]
[1645892037048,65.55,91.586,91.521,23.8601]
[1645892037248,1.65138922,91.585,91.521,23.8601]
[1645892038349,1.63663902,91.584,91.521,23.8601]
[1645892038548,65.55,91.579,91.521,23.8601]
[1645892038750,2.14584858,91.578,91.521,23.8601]
[1645892039649,65.55,91.587,91.521,23.8601]
[1645892039850,2.14641601,91.586,91.521,23.8601]
[1645892040454,16.3976,91.57,91.521,23.8601]
[1645892040651,1.67121845,91.569,91.521,23.8601]
[1645892041653,67.22121845,91.569,91.499,14.84261322]
[1645892041853,65.55,91.567,91.502,23.5]
[1645892042053,1.66463163,91.566,91.502,23.5]
[1645892044856,1.66463163,91.566,91.494,2.74678921]
[1645892046957,46.95269862,91.589,91.5,15.77]
[1645892047158,46.95269862,91.589,91.501,27.5135]
[1645892047359,46.95269862,91.589,91.502,109.4]
[1645892047558,46.95269862,91.589,91.503,4.369]
[1645892047761,46.95269862,91.589,91.504,109.4]
[1645892047960,46.95269862,91.589,91.505,4.369]
[1645892048162,46.95269862,91.589,91.506,109.4]
[1645892048362,46.95269862,91.589,91.52,15.77]
[1645892048561,46.95269862,91.589,91.521,23.2357]
[1645892054967,2.05604283,91.588,91.521,23.2357]
[1645892057671,2.05604283,91.588,91.522,2.74678921]
[1645892059773,2.05604283,91.588,91.521,23.2357]
[1645892070909,1.64611632,91.588,91.521,23.2357]
[1645892071107,46.95269862,91.589,91.522,2.74678921]
[1645892073612,46.95269862,91.589,91.521,23.2357]
[1645892073613,1.75498286,91.588,91.521,23.2357]
[1645892073812,174.95,91.586,91.508,24.3796]
[1645892074011,2.12499163,91.585,91.508,24.3796]
[1645892074212,65.55,91.584,91.508,24.3796]
[1645892074420,1.8752461,91.583,91.508,24.3796]
[1645892074615,65.55,91.581,91.508,24.3796]
[1645892074815,2.05477177,91.58,91.508,24.3796]
[1645892075615,1.57908661,91.579,91.508,24.3796]
[1645892077520,1.69639931,91.569,91.508,24.3796]
[1645892077720,8.99639931,91.569,91.508,24.3796]
[1645892079621,1.69639931,91.569,91.508,24.3796]
[1645892080820,16.398,91.57,91.508,24.3796]
[1645892081020,1.75823049,91.581,91.508,24.3796]
[1645892081321,54.6502,91.61,91.509,2.74678921]
[1645892081519,67.22142129,91.588,91.51,15.77]
[1645892081720,1.67142129,91.588,91.51,15.77]
[1645892082520,16.3959,91.58,91.51,15.77]
[1645892082722,1.59521967,91.579,91.51,15.77]
[1645892083122,24.7354,91.579,91.51,32.1642]
[1645892083324,24.7354,91.579,91.511,2.74678921]
[1645892083921,24.7354,91.579,91.512,13.91912937]
[1645892084121,24.7354,91.579,91.513,109.4]
[1645892084321,24.7354,91.579,91.512,16.66591858]
[1645892084522,54.6386,91.63,91.521,109.4]
[1645892084723,0.91,91.701,91.531,109.4]
[1645892084724,16.7383,91.699,91.531,109.4]
[1645892084927,1.58872724,91.647,91.541,109.4]
[1645892085324,1.58872724,91.647,91.543,109.4]
[1645892085524,59.95929296,91.646,91.543,109.4]
[1645892085724,59.95929296,91.646,91.545,109.4]
[1645892085924,1.891498,91.645,91.56,15.77]
[1645892086124,1.891498,91.645,91.561,22.7366]
[1645892086425,1.891498,91.645,91.561,83.10379925]
[1645892086625,1.891498,91.645,91.57,16.3828]
[1645892086824,1.891498,91.645,91.57,32.1528]
[1645892087023,1.891498,91.645,91.571,61.62041004]
[1645892087226,1.891498,91.645,91.571,64.36719925]
[1645892087428,1.891498,91.645,91.572,171.02041004]
[1645892087626,1.891498,91.645,91.572,64.36719925]
[1645892087826,1.891498,91.645,91.573,31.4756994]
[1645892088025,1.891498,91.645,91.573,61.62041004]
[1645892088425,1.891498,91.645,91.572,2.74678921]
[1645892088426,1.891498,91.645,91.574,31.4756994]
[1645892088725,3.939321,91.645,91.574,31.4756994]
[1645892088928,3.939321,91.645,91.574,34.22248861]
[1645892089428,3.939321,91.645,91.575,31.4756994]
[1645892089829,3.939321,91.645,91.57,16.3828]
[1645892090237,3.939321,91.645,91.561,22.7366]
[1645892090238,69.489321,91.645,91.561,22.7366]
[1645892090428,1.81116922,91.644,91.561,22.7366]
[1645892090630,24.3512,91.643,91.561,42.19566251]
[1645892090830,1.9983424,91.642,91.561,42.19566251]
[1645892091031,16.3864,91.64,91.561,42.19566251]
[1645892091231,1.93750272,91.639,91.561,42.19566251]
[1645892091431,1.93750272,91.639,91.562,30.14471064]
[1645892091829,1.93750272,91.639,91.563,19.45906251]
[1645892092231,1.93750272,91.639,91.564,30.14471064]
[1645892092638,1.93750272,91.639,91.565,19.45906251]
[1645892093034,1.93750272,91.639,91.566,30.14471064]
[1645892093833,1.93750272,91.639,91.566,49.60377315]
[1645892094435,1.93750272,91.639,91.567,30.14471064]
[1645892094633,1.93750272,91.639,91.57,16.3843]
[1645892095136,1.93750272,91.639,91.571,19.45906251]
[1645892095535,1.93750272,91.639,91.572,24.2317]
[1645892097247,1.93750272,91.639,91.572,43.69076251]
[1645892103665,16.3864,91.64,91.449,11.41065288]
[1645892103666,109.4,91.622,91.449,11.41065288]
[1645892103870,5.70772865,91.479,91.449,11.41065288]
[1645892104065,5.70772865,91.479,91.434,112.2]
[1645892104266,13.27772865,91.479,91.434,112.2]
[1645892104666,13.27772865,91.479,91.435,52.60183696]
[1645892105365,5.70772865,91.479,91.435,52.60183696]
[1645892105566,5.70772865,91.479,91.434,112.2]
[1645892106168,5.70772865,91.479,91.435,109.4]
[1645892108470,5.70772865,91.479,91.434,112.2]
[1645892109677,2.11285976,91.479,91.371,109.4]
[1645892109874,1.8037926,91.469,91.372,4.374]
[1645892110073,1.8037926,91.469,91.37,112.2]
[1645892110074,10.5037926,91.469,91.371,4.374]
[1645892110381,1.9084412,91.459,91.38,16.4173]
[1645892110572,1.9084412,91.459,91.381,4.375]
[1645892110974,1.89777734,91.479,91.371,4.375]
[1645892111177,15.77,91.49,91.38,8.85908571]
[1645892111376,2.08361079,91.489,91.381,26.9267]
[1645892111574,1.63517068,91.499,91.382,109.4]
[1645892111776,1.63517068,91.499,91.383,4.374]
[1645892112575,1.63517068,91.499,91.391,109.4]
[1645892113080,1.63517068,91.499,91.392,4.374]
[1645892113576,1.63517068,91.499,91.411,109.4]
[1645892113775,1.63517068,91.499,91.412,4.373]
[1645892114779,1.63517068,91.499,91.405,4.373]
[1645892115580,1.63517068,91.499,91.43,16.4086]
[1645892115778,1.68930199,91.497,91.431,56.95753791]
[1645892117181,1.68930199,91.497,91.403,112.2]
[1645892117583,4.4360912,91.497,91.403,112.2]
[1645892118187,16.4123,91.49,91.403,112.2]
[1645892118380,15.77,91.48,91.403,112.2]
[1645892118580,1.67433848,91.479,91.403,112.2]
[1645892119282,2.13177909,91.477,91.403,112.2]
[1645892119479,16.4171,91.47,91.403,112.2]
[1645892119679,2.06477292,91.459,91.403,112.2]
[1645892119882,32.1871,91.47,91.403,112.2]
[1645892120080,1.68173994,91.469,91.403,112.2]
[1645892121982,16.4179,91.46,91.403,112.2]
[1645892122181,2.05482673,91.459,91.403,112.2]
[1645892122581,2.05482673,91.459,91.37,16.4195]
[1645892122786,2.74678921,91.458,91.364,46.7323]
[1645892122981,45.95216986,91.458,91.371,48.90607183]
[1645892123181,1.69099785,91.457,91.371,48.90607183]
[1645892123383,16.4199,91.45,91.371,48.90607183]
[1645892123781,1.59192292,91.449,91.371,48.90607183]
[1645892126088,1.59192292,91.449,91.372,109.4]
[1645892126287,43.20538065,91.458,91.372,109.4]
[1645892126492,1.72414984,91.457,91.372,109.4]
[1645892126786,1.72414984,91.457,91.381,109.4]
[1645892127586,1.72414984,91.457,91.38,16.4177]
[1645892129791,1.72414984,91.457,91.39,16.4173]
[1645892129991,1.72414984,91.457,91.391,21.59781755]
[1645892130792,1.72414984,91.457,91.39,16.4173]
[1645892131436,1.60571523,91.449,91.37,16.4197]
[1645892131893,1.60571523,91.449,91.371,43.32798279]
[1645892132696,16.422,91.44,91.34,54.7388]
[1645892132898,23.522,91.44,91.35,16.4228]
[1645892133196,1.73510058,91.439,91.35,16.4228]
[1645892133396,4.48188979,91.439,91.35,16.4228]
[1645892133599,70.03188979,91.439,91.35,16.4228]
[1645892133797,67.33031157,91.437,91.353,46.36897084]
[1645892133996,2.00046312,91.436,91.353,46.36897084]
[1645892134197,16.4237,91.43,91.353,46.36897084]
[1645892134399,1.86379334,91.429,91.353,46.36897084]
[1645892135199,16.4273,91.41,91.353,46.36897084]
[1645892135400,45.22616024,91.409,91.353,46.36897084]
[1645892135600,1.61850416,91.408,91.34,16.426]
[1645892136001,1.61850416,91.408,91.341,109.4]
[1645892136207,43.20538065,91.409,91.342,109.4]
[1645892136601,43.20538065,91.409,91.36,16.4224]
[1645892137001,43.20538065,91.409,91.331,109.4]
[1645892137202,1.71955316,91.408,91.331,109.4]
[1645892137805,43.20538065,91.409,91.35,16.4243]
[1645892138102,43.20538065,91.409,91.351,25.40838787]
[1645892138502,2.00676143,91.408,91.33,54.7429]
[1645892139321,2.00676143,91.408,91.35,16.4245]
[1645892139522,43.20538065,91.409,91.352,109.4]
[1645892139722,43.20538065,91.409,91.351,22.40221543]
[1645892139924,2.13165721,91.408,91.351,22.40221543]
[1645892141024,43.20538065,91.409,91.351,22.40221543]
[1645892141227,1.93728403,91.408,91.351,22.40221543]
[1645892143429,1.93728403,91.408,91.33,54.7429]
[1645892143630,1.93728403,91.408,91.326,82.64280267]
[1645892143833,65.55,91.407,91.326,82.64280267]
[1645892144031,1.86554044,91.406,91.326,82.64280267]
[1645892144234,65.55,91.405,91.326,82.64280267]
[1645892144434,1.88123156,91.404,91.326,82.64280267]
[1645892144633,65.55,91.389,91.326,93.88896038]
[1645892144835,16.4336,91.38,91.3,16.432]
[1645892145033,1.97405621,91.379,91.3,16.432]
[1645892145234,67.52405621,91.379,91.3,16.432]
[1645892145433,67.52405621,91.379,91.294,47.9244]
[1645892145434,2.05477765,91.378,91.294,47.9244]
[1645892145633,4.80156686,91.378,91.294,47.9244]
[1645892145933,65.55,91.373,91.295,47.60528562]
[1645892146135,65.55,91.373,91.295,46.10528562]
[1645892146136,15.77,91.37,91.295,46.10528562]
[1645892146337,1.92352375,91.369,91.295,46.10528562]
[1645892148841,1.92352375,91.369,91.296,109.4]
[1645892149039,1.92352375,91.369,91.296,114.86]
[1645892149937,1.92352375,91.369,91.32,16.4298]
[1645892150236,1.92352375,91.369,91.321,22.89860375]
[1645892150640,15.77,91.41,91.322,109.4]
[1645892150838,1.97658821,91.409,91.321,22.89860375]
[1645892151442,44.70481619,91.408,91.34,16.4263]
[1645892151640,1.91325853,91.407,91.341,46.10528562]
[1645892152640,1.91325853,91.407,91.34,16.4263]
[1645892153641,1.91325853,91.407,91.34,61.09855335]
[1645892155339,1.91325853,91.407,91.34,16.4263]
[1645892155740,1.91325853,91.407,91.322,24.9505]
[1645892156341,16.4296,91.4,91.322,24.9505]
[1645892156540,1.9198308,91.399,91.322,24.9505]
[1645892156743,4.66662001,91.399,91.322,24.9505]
[1645892157142,2.74678921,91.398,91.322,24.9505]
[1645892157541,1.9198308,91.399,91.33,16.4281]
[1645892158147,2.74678921,91.398,91.322,24.9505]
[1645892158651,1.9198308,91.399,91.33,16.4281]
[1645892159449,1.9198308,91.399,91.322,24.9505]
[1645892159649,16.4309,91.39,91.322,24.9505]
[1645892159849,34.28269465,91.389,91.322,24.9505]
[1645892160051,1.59229099,91.388,91.322,24.9505]
[1645892163453,1.59229099,91.388,91.33,16.4283]
[1645892165584,1.59229099,91.388,91.322,24.9505]
[1645892168081,1.59229099,91.388,91.33,16.4278]
[1645892174590,1.59229099,91.388,91.322,24.9505]
[1645892190507,1.59229099,91.388,91.33,16.4279]
[1645892190709,32.64129444,91.389,91.331,14.96871301]
[1645892192511,32.64129444,91.389,91.34,16.426]
[1645892194414,32.64129444,91.389,91.331,14.96871301]
[1645892194614,2.0622878,91.388,91.331,14.96871301]
[1645892198019,2.0622878,91.388,91.322,24.9505]
[1645892199046,65.55,91.384,91.304,4.378]
[1645892199250,65.55,91.369,91.304,4.378]
[1645892199443,74.12740077,91.369,91.271,23.8824]
[1645892199650,65.55,91.367,91.271,23.8824]
[1645892199846,1.76400919,91.366,91.271,23.8824]
[1645892200146,65.55,91.363,91.272,59.09629414]
[1645892200346,65.55,91.359,91.272,59.09629414]
[1645892200551,16.4402,91.35,91.272,59.09629414]
[1645892200746,34.40585483,91.348,91.272,59.09629414]
[1645892200949,1.74906372,91.347,91.272,59.09629414]
[1645892201746,1.81317405,91.347,91.272,59.09629414]
[1645892202348,1.81317405,91.347,91.271,23.8824]
[1645892202750,4.55996326,91.347,91.271,23.8824]
[1645892202949,1.40006242,91.339,91.271,23.8824]
[1645892203151,66.95006242,91.339,91.271,23.8824]
[1645892203350,4.37817831,91.338,91.248,23.2109]
[1645892203556,1.39378133,91.336,91.249,24.8683]
[1645892204050,65.55,91.334,91.249,24.8683]
[1645892204254,1.59252621,91.333,91.249,24.8683]
[1645892204456,65.55,91.329,91.249,24.8683]
[1645892204651,71.8,91.329,91.249,24.8683]
[1645892204850,1.74267686,91.328,91.249,24.8683]
[1645892205051,4.48946607,91.328,91.249,24.8683]
[1645892205452,16.4444,91.32,91.249,24.8683]
[1645892205754,1.83016547,91.319,91.249,24.8683]
[1645892205951,28.55834918,91.318,91.25,16.4426]
[1645892207854,28.55834918,91.318,91.251,3.10560312]
[1645892208052,28.55834918,91.318,91.27,16.4384]
[1645892208256,28.55834918,91.318,91.271,45.733802]
[1645892208854,28.55834918,91.318,91.272,109.4]
[1645892209455,22.8904,91.354,91.272,109.4]
[1645892209656,22.8904,91.354,91.28,16.437]
[1645892210361,56.26431687,91.375,91.274,2.90038251]
[1645892210773,56.26431687,91.375,91.274,112.30038251]
[1645892211162,24.8397,91.374,91.274,112.30038251]
[1645892211560,24.8397,91.374,91.3,16.4329]
[1645892211760,24.8397,91.374,91.301,51.62793263]
[1645892212960,22.10387835,91.373,91.301,51.62793263]
[1645892213365,22.10387835,91.373,91.301,24.2749]
[1645892213971,1.488466,91.372,91.301,24.2749]
[1645892214267,1.488466,91.372,91.302,59.07139959]
[1645892217072,1.488466,91.372,91.301,24.2749]
[1645892217274,16.4359,91.37,91.301,24.2749]
[1645892217472,1.6605425,91.369,91.301,24.2749]
[1645892217686,4.40733171,91.369,91.301,24.2749]
[1645892217887,2.74678921,91.368,91.301,24.2749]
[1645892218087,2.74678921,91.368,91.281,58.88364998]
[1645892218288,2.74678921,91.368,91.282,23.8613]
[1645892218887,2.74678921,91.368,91.29,16.435]
[1645892220791,22.10387835,91.367,91.29,16.435]
[1645892220994,1.38252652,91.366,91.29,16.435]
[1645892221192,4.12931573,91.366,91.29,16.435]
[1645892221392,22.10387835,91.365,91.29,16.435]